Cogmind - Beta 13 X1 @@@ ROGUE MODE // 2023.06.27 @ 07:08:14 Player: maxwell Result: Destroyed by Z5-CFP(R) with Subdweller Laser Performance ------------- Evolutions (0) 0 Regions Visited (3) 600 Robots Destroyed (36) 180 Value Destroyed (981) 981 Prototype IDs (0) 0 Alien Tech Used (0) 0 Bonus (-237) -237 TOTAL SCORE: 1524 Bonus ------- Friendly Fire -237 Cogmind --------- Core Integrity 0/250 Matter 284/300 Energy 70/100 System Corruption 0% Temperature Cool (6) Movement Rolling (110) Location -10/Subcaves Parts ------- > --- POWER (1) -------- (None) > --- PROPULSION (2) --- Subdweller Monowheel Subdweller Monowheel > --- UTILITY (2) ------ Scrap Shield > --- WEAPON (2) ------- Subdweller Machine Gun Subdweller Machine Gun > --- INVENTORY (5) ---- Subdweller Monowheel Subdweller Laser Subdweller Machine Gun Subdweller Shrapnel Launcher Makeshift Axe Peak State ------------ > --- POWER ------------ Light Ion Engine > --- PROPULSION ------- Light Treads Light Treads > --- UTILITY ---------- Scrap Shield > --- WEAPON ----------- Makeshift Laser Makeshift Axe > --- INVENTORY -------- Compact Wheel Subdweller Monowheel Subdweller Machine Gun Subdweller Machine Gun [Rating: 15] Favorites ----------- Power Light Ion Engine Engine Light Ion Engine Propulsion Light Treads Treads Light Treads Leg Aluminum Leg Wheel Subdweller Monowheel Utility Huge Storage Unit Device Shield Generator Storage Huge Storage Unit Protection Light Armor Plating Weapon Assault Rifle Energy Gun EM Shotgun Ballistic Gun Assault Rifle Special Weapon Multitool Slashing Weapon Makeshift Axe Build | -11 -10 -10 -10 ------- Run | Jun Mat Min Sub Slots Evolved . | . . . . Power . | . . . . Propulsion . | . . . . Utility . | . . . . Weapon . | . . . . Parts Attached 27 | . 6 4 17 Power 2 | . 1 . 1 Engine 2 | . 1 . 1 Core . | . . . . Reactor . | . . . . Propulsion 4 | . 2 . 2 Treads 2 | . 2 . . Leg . | . . . . Wheel 2 | . . . 2 Hover . | . . . . Flight . | . . . . Utility 5 | . 2 1 2 Device 1 | . 1 . . Storage 1 | . 1 . . Processor . | . . . . Hackware . | . . . . Protection 3 | . . 1 2 Artifact . | . . . . Weapon 16 | . 1 3 12 Energy Gun 5 | . . 2 3 Energy Cannon . | . . . . Ballistic Gun 9 | . 1 1 7 Ballistic Cannon . | . . . . Launcher . | . . . . Special Weapon 1 | . . . 1 Impact Weapon . | . . . . Slashing Weapon 1 | . . . 1 Piercing Weapon . | . . . . Special Melee Weapon . | . . . . Unidentified Prototypes . | . . . . Parts Lost 8 | . 1 1 6 Power 2 | . . . 2 Propulsion 1 | . . . 1 Utility 1 | . . 1 . Weapon 4 | . 1 . 3 Highest Loss Streak 3 | . 1 1 3 To Critical Strikes 1 | . . . 1 Average Slot Usage (%) 94 | . 99 100 92 Engine 13 | . 14 14 13 Treads 23 | . 6 28 26 Leg 3 | . 21 . . Device 2 | . 13 . . Storage 9 | . 14 14 7 Protection 11 | . . 13 14 Energy Gun 9 | . 10 27 4 Ballistic Gun 12 | . 17 . 15 Slashing Weapon 5 | . . . 8 Naked Turns . | . . . . Heaviest Build 94 | 14 91 94 94 Greatest Support 40 | 20 40 40 40 Greatest Overweight (x) 4 | . 4 2 2 Average Overweight (x) 1 | . 2 2 . Largest Inventory Capacity 25 | . 25 25 25 Average Capacity 18 | . 23 25 15 Most Carried 17 | . 15 15 17 Average Carried 10 | . 9 14 10 Final Capacity 25 | 8 25 25 5 Final Carried 15 | 6 15 14 5 Class Distribution -------------------- 83% | Mutant 16% | Subdweller-Mutant Dominant Class ---------------- Mutant | -10/Materials Mutant | -10/Mines Mutant | -10/Subcaves Resources | -11 -10 -10 -10 ----------- Run | Jun Mat Min Sub Matter Collected 847 | 189 82 159 417 Remotely . | . . . . Salvage Created 1061 | . 404 144 513 Parts 82 | . 34 7 41 Haulers Intercepted . | . . . . Recyclers Shooed 1 | . . 1 . Parts Field Recycled . | . . . . Retrieved Matter . | . . . . Parts Self-Destructed 3 | . . . 3 Prevented . | . . . . Kills | -11 -10 -10 -10 ------- Run | Jun Mat Min Sub Combat Hostiles Destroyed 31 | . 12 5 14 Melee 1 | . . . 1 Guns 27 | . 11 3 13 AOE 3 | . 1 2 . Classes Destroyed 7 | . 5 . 2 Tunneler 1 | . 1 . . Mechanic 1 | . 1 . . Watcher 1 | . 1 . . Swarmer 9 | . 6 3 . Grunt 8 | . 6 2 . Subdweller 14 | . . . 14 Zionite 2 | . . . 2 Best Kill Streak 4 | . 4 3 2 Combat Bots Only 3 | . 3 3 2 Max Kills in Single Turn 1 | . 1 1 1 Gunslinging . | . . . . Exploded 1 | . 1 1 . Melee 1 | . . . 1 Uniques/NPCs Destroyed . | . . . . Combat | -11 -10 -10 -10 -------- Run | Jun Mat Min Sub Damage Taken 1786 | . 294 194 1298 Core 267 | . 50 7 210 Absorbed by Shields 121 | . 116 5 . Core Remaining (%) 100 | 100 . . . Volleys Fired 112 | . 37 9 66 Largest 2 | . 2 2 2 Hottest 90 | . 60 90 90 Shots Fired 218 | . 74 18 126 Gun 218 | . 74 18 126 Cannon . | . . . . Launcher . | . . . . Special . | . . . . Kinetic 147 | . 41 . 106 Thermal . | . . . . Explosive . | . . . . Electromagnetic 71 | . 33 18 20 Robot Hit Streak 23 | . 5 5 23 Robot Miss Streak 5 | . 3 5 5 Penetration Max . | . . . . Secondary Targets 3 | . . 1 2 Max Gunslinging Chain 1 | . . 1 1 Shots Hit Robots 144 | . 39 14 91 Core Hits 58 | . 22 7 29 Critical Kills . | . . . . Critical Parts Destroyed 1 | . 1 . . Critical Strikes 1 | . 1 . . Destroy 1 | . 1 . . Melee Attacks 30 | . . . 30 Impact . | . . . . Slashing 30 | . . . 30 Piercing . | . . . . Sneak Attacks 3 | . . . 3 Combat Hostiles . | . . . . Follow-up Attacks . | . . . . Damage Inflicted 2622 | . 533 275 1814 Guns 1958 | . 502 151 1305 Cannons . | . . . . Explosions 141 | . 20 121 . Melee 509 | . . . 509 Ramming 14 | . 11 3 . Kinetic 1504 | . 296 . 1208 Thermal 141 | . 20 121 . Explosive . | . . . . Electromagnetic 454 | . 206 151 97 Impact . | . . . . Slashing 509 | . . . 509 Piercing . | . . . . Highest Corruption . | . . . . Average Corruption . | . . . . Corruption Purged . | . . . . Corruption Blocked . | . . . . Overload Shots . | . . . . Overflow Damage . | . . . . Projectiles . | . . . . Explosions . | . . . . Melee . | . . . . Knockbacks . | . . . . Impact . | . . . . Kinetic . | . . . . Secondary . | . . . . Self-Inflicted Damage 72 | . 39 33 . Shots 3 | . 1 2 . Rammed 3 | . 1 2 . Targets Rammed 7 | . 5 2 . Kicked 3 | . 3 . . Crushed 1 | . 1 . . Highest Temperature 234 | . 34 234 . Average Temperature 52 | . 10 106 . Received Heat Transfer 284 | . 74 21 189 Siege Activations . | . . . . Robots Corrupted . | . . . . Combat Hostiles . | . . . . Parts Fried 2 | . . 1 1 Impact Corruptions . | . . . . Robots Melted . | . . . . Combat Hostiles . | . . . . Parts Melted . | . . . . Heat Transferred 150 | . . 150 . Parts Sabotaged . | . . . . Parts Stolen . | . . . . Parts Stripped . | . . . . Power Chain Reactions 3 | . 1 2 . Missiles Intercepted . | . . . . Alert | -11 -10 -10 -10 ------- Run | Jun Mat Min Sub Peak Influence 247 | . 247 100 . Initial 40 | . . 40 . Average 69 | . 105 34 . Maximum Alert Level 1 | . 1 . . Low Security (%) 88 | . 77 100 . Level 1 11 | . 22 . . Level 2 . | . . . . Level 3 . | . . . . Level 4 . | . . . . Level 5 . | . . . . High Security . | . . . . Max Security . | . . . . Squads Dispatched 2 | . 2 . . Investigation . | . . . . Extermination . | . . . . Reinforcement 2 | . 2 . . Assault . | . . . . Garrison . | . . . . Intercept . | . . . . Searches Triggered . | . . . . Construction Impeded . | . . . . Haulers Reinforced . | . . . . Active Scanning Responses . | . . . . Cargo Convoy Interrupts . | . . . . Stealth | -11 -10 -10 -10 --------- Run | Jun Mat Min Sub Distress Signals 2 | . 2 . . Communications Jammed . | . . . . Distress Signals . | . . . . Times Spotted 38 | . 18 5 15 Peak Tracking Total 6 | . 6 3 2 Tactical Retreats 2 | . 2 . . Traps | -11 -10 -10 -10 ------- Run | Jun Mat Min Sub Traps Triggered 2 | . 1 . 1 Indirectly . | . . . . Trap Hack Attempts . | . . . . Triggered . | . . . . Disarmed . | . . . . Reprogrammed . | . . . . Reused . | . . . . Traps Extracted . | . . . . Installed . | . . . . Triggered . | . . . . Machines | -11 -10 -10 -10 ---------- Run | Jun Mat Min Sub Machines Disabled 1 | . 1 . . Max in Single Turn 1 | . 1 . . Machines Repaired . | . . . . Machines Sabotaged . | . . . . Overloaded Fab Kills . | . . . . Hacking | -11 -10 -10 -10 --------- Run | Jun Mat Min Sub Machines Accessed 1 | . . . 1 Terminals . | . . . . Fabricators . | . . . . Repair Stations . | . . . . Recycling Units . | . . . . Scanalyzers . | . . . . Garrison Access . | . . . . Total Hacks 3 | . . . 3 Successful 3 | . . . 3 Failed . | . . . . Catastrophic . | . . . . Database Lockouts . | . . . . Manual . | . . . . Terminals . | . . . . Fabricators . | . . . . Repair Stations . | . . . . Recycling Units . | . . . . Scanalyzers . | . . . . Garrison Access . | . . . . Terminal Hacks 3 | . . . 3 Record 3 | . . . 3 Fabricator Hacks . | . . . . Repair Station Hacks . | . . . . Recycling Unit Hacks . | . . . . Scanalyzer . | . . . . Garrison Access Hacks . | . . . . Unauthorized Hacks . | . . . . Terminals . | . . . . Fabricators . | . . . . Repair Stations . | . . . . Recycling Units . | . . . . Scanalyzers . | . . . . Garrison Access . | . . . . Data Cores Recovered . | . . . . Used . | . . . . Hacking Detections . | . . . . Full Trace Events . | . . . . Feedback Events . | . . . . Feedback Blocked . | . . . . Robot Schematics Acquired . | . . . . Robots Built . | . . . . Authchips . | . . . . Time . | . . . . Total Robot Build Rating . | . . . . Part Schematics Acquired . | . . . . Parts Built . | . . . . Authchips . | . . . . Time . | . . . . Total Part Build Rating . | . . . . Parts Repaired . | . . . . Time . | . . . . Parts Recycled . | . . . . Recycled Matter . | . . . . Retrieved Matter . | . . . . Retrieved Components . | . . . . Parts Scanalyzed . | . . . . Part Schematics Acquired . | . . . . Parts Damaged . | . . . . Bothacking | -11 -10 -10 -10 ------------ Run | Jun Mat Min Sub Used RIF Installer . | . . . . Robots Hacked . | . . . . Non-combat . | . . . . Combat . | . . . . Robot Hacks Applied . | . . . . Relay Couplers Released . | . . . . Fabnet Peak Effective % . | . . . . Robots Rewired . | . . . . Allies Hacked . | . . . . Hacks Repelled . | . . . . Allies | -11 -10 -10 -10 -------- Run | Jun Mat Min Sub Total Allies . | . . . . Largest Group . | . . . . Highest-Rated Group . | . . . . Highest-Rated Ally . | . . . . Total Orders . | . . . . Ally Attacks . | . . . . Total Damage . | . . . . Kills . | . . . . Allies Corrupted . | . . . . Allies Melted . | . . . . Intel | -11 -10 -10 -10 ------- Run | Jun Mat Min Sub Robot Analysis Total . | . . . . Derelict Logs Recovered 4 | . . 2 2 Drone Launches . | . . . . Drone Recoveries . | . . . . Exploration | -11 -10 -10 -10 ------------- Run | Jun Mat Min Sub Turns Passed 6859 | . 1178 1208 4473 Spaces Moved 2581 | 1 305 366 1909 Core . | . . . . Treads 2233 | . 72 366 1795 Legs 234 | 1 233 . . Wheels 114 | . . . 114 Hover . | . . . . Flight . | . . . . Fastest Speed 110 | 120 120 320 110 Average Speed 245 | 120 330 320 217 Slowest Speed 400 | 120 400 320 320 Overloaded Moves . | . . . . Propulsion Burnouts . | . . . . Robots Hopped . | . . . . Cave-ins Triggered . | . . . . Exploration Rate (%) 58 | 2 59 79 92 Regions Visited 3 Branch Regions 2 Pre-discovered Areas 2 | . . . 2 Known Exits Taken . | . . . . Unknown Exits Taken 3 | 1 1 1 . Scrap Searched 14 | . . 1 13 Spaces Dug . | . . . . Terrain Destroyed 12 | . 4 8 . Melee . | . . . . Projectile . | . . . . AOE 12 | . 4 8 . Terrain Rammed . | . . . . Walls Destroyed . | . . . . Machines Disabled . | . . . . Actions | -11 -10 -10 -10 --------- Run | Jun Mat Min Sub Total 2860 | . 398 381 2081 Wait 47 | . 30 1 16 Move 2578 | . 304 365 1909 Hop . | . . . . Pick Up 29 | . 12 . 17 Fast Attach 5 | . 2 . 3 Attach 11 | . 3 1 7 Detach 1 | . 1 . . Swap 11 | . 1 3 7 Drop 16 | . 3 . 13 Fire 112 | . 37 9 66 Melee 30 | . . . 30 Ram . | . . . . Kick 3 | . 3 . . Crush 4 | . 2 2 . Escape Stasis . | . . . . Rewire . | . . . . Trap . | . . . . Miscellaneous 13 | . . . 13 Route ------- -11/Junkyard -10/Materials (discovered 3 exits: [*Mat x2] / [*Min]) -10/Mines (discovered 4 exits: [*Mat x2] / [*Exi] / *Sub) -10/Subcaves (discovered 2 exits: [*Mat] / [*Mat]) History --------- Turn | Location | Event 1 | -11/Junkyard | Discovered new exit (range 0) 1 | -11/Junkyard | Entered Materials 151 | -10/Materials | Discovered new exit (range 16) 317 | -10/Materials | Build established: Mutant 512 | -10/Materials | Discovered new exit (range 14) 1021 | -10/Materials | Discovered new exit (range 7) 1100 | -10/Materials | Derelicts attacked the area 1179 | -10/Materials | Entered Mines 1369 | -10/Mines | Discovered new exit (range 11) 1488 | -10/Mines | Discovered new exit (range 4) 2057 | -10/Mines | Learned Materials terminal intel 2144 | -10/Mines | Deemed a non-threat by the Exiles lab entrance 2144 | -10/Mines | Discovered new exit (range 5) 2272 | -10/Mines | Discovered new exit (range 5) 2310 | -10/Mines | Learned location of 1 exit from Materials 2387 | -10/Mines | Entered Subcaves 2671 | -10/Subcaves | Shifting Twisted Machinery released Mak. Laser 2916 | -10/Subcaves | Lost 3 parts (1p2w) 3221 | -10/Subcaves | Shifting Twisted Machinery released Sub. Optics 3279 | -10/Subcaves | Shifting Twisted Machinery released Battle Cannon 3285 | -10/Subcaves | Shifting Twisted Machinery released Sub. Monowheel 3311 | -10/Subcaves | Shifting Twisted Machinery released Sub. Machine Gun 3366 | -10/Subcaves | Learned Materials terminal intel 4680 | -10/Subcaves | Shifting Twisted Machinery released Scrap Shield 5016 | -10/Subcaves | Learned location of Zion (-7) 5016 | -10/Subcaves | Met a Zionite searching for "candidates" 5017 | -10/Subcaves | Discovered new exit (range 14) 5123 | -10/Subcaves | Disturbed a concealed Subdweller 5588 | -10/Subcaves | Visited Clippyterm 5593 | -10/Subcaves | Learned location of Deep Caves (-7) 6005 | -10/Subcaves | Disturbed a concealed Subdweller 6006 | -10/Subcaves | Build established: Subdweller-Mutant 6028 | -10/Subcaves | Core integrity fell below 50% 6123 | -10/Subcaves | Core integrity fell below 20% 6637 | -10/Subcaves | Ambushed by Subdwellers from Twisted Machinery 6673 | -10/Subcaves | Discovered new exit (range 15) 6860 | -10/Subcaves | Destroyed by Z5-CFP(R) with Subdweller Laser Last Messages --------------- 06832_ Found Sub. Shrapnel Launcher. 06832_ Found Sub. Machine Gun. 06832_ Found 21 Matter. 06836_ Searching scrap... 06836_ Found Slug Cannon. 06836_ Found 10 Matter. 06837_ Searching scrap... 06837_ Found Sub. Beam Cannon. 06837_ Found Sub. Machine Gun. 06837_ Found 42 Matter. 06845_ Searching scrap... 06845_ Found Sub. Monowheel. 06845_ Found Flamer. 06845_ Found 31 Matter. 06850_ Dropped Mak. Laser. 06851_ Acquired Sub. Shrapnel Launcher. 06852_ Triggered Piercing Trap. 06852_ Spikes shoot up from the floor. 06852_ Critical hit (Destroy). 06857_ Sub. Machine Gun shoots sparks and powers down. Map ----- +----------------------------------------------------+ | ???????????????? ???????#???## " | | ???????????????## ??????# # ###" " | | ????????????????#??????? """ #" ## # | | ??????????????????????# ### /"" ############# | | ???????????????????????????#### ## "#???????????? | | ??????????????????????????????##?# ##??????????? | | ????????????????????????????????##^ #??????????? | | ????????????????????????????????# ^ #######???##? | | ???????????????????????????????# ^ # ## #???# # | | ??????????????????????????????# ## #?????# | | ??????????????????????????????# ?## ######## | | ??????????????????????????????## =??# ### %## % | | ???????????????????????????????# ?# ?#### ### | | ???????????????????????????????#^ ?# ##???# # | | ???????????????????????????????##? # ???# ### | | ????????????????????????????????? ???# # | | ????????????????????????????????## ? ? # | | ?????????????????????????????????# ### | | ???????????????????????????????###? ## | | ???????????????????#####?####??# ### ### ### " | | ??????????????????##%<<###<<##? ### #?##?# " | | ??????????????????#%][ <#%= <### ?######????# " | | ??????????????????#"] # & <## ???????###### " | | ??????????????????#" # ] <## #??????## ## | | ??????????????????#" [ & # ##????## """ | | ??????????????????#" [%#@## ## ###?## ### | | ??????????????????#""=### # #" ### # # | | ??????????????????###|%## # | | ????????????????????#####R# | | ???????????????????????? # #" ## | | ???????????????????????? ###" #### #? | | ???????????????????????? ??# ##??#######? | | ???????????????????????#< ??## #####??????? | | ???????????????????????## #?### ##??###? | | ????????????????????????###### ### #? | | ???????????????????????#### ## #? | | ??????????????????????## ## ## ## | | ??????????????????????# ### # | | ???????????????????????# #?## # | | ???????????????????????# #??### # | | ???????????????????????# ##??## # | | ???????????????????????# #### ### | | ???????????????????????# ## ##?? | | ??????????????????????## ##??? | | ##????????????????????# ## ##?? ? | | ##???#####???????????# ### ## #??? ? | | #??## "#???????????# #??# ##?? ? | | #### ##???????????###???## ## ##?? ## | | ## " #???????????????????## ### #?? ## | | " #????????????????????# ##?# #?? | +----------------------------------------------------+ Best States ------------- Heat Dissipation 25 Energy Generation 10 Energy Capacity 250 Matter Stores 300 Matter Capacity 300 Sight Range 16 Terrain Scan Density 10 Armor Coverage 800 Evasion (%) 55 Recoil Reduction 2 Item Schematics ----------------- None Robot Schematics ------------------ None Fabricated ------------ Nothing Alien Tech Used ----------------- None Achievements -------------- None Challenges ------------ None Game ------ Seed WaveArmageddonBuckler Manual? 0 Play Time 00:16:14 Cumulative 369.4 hours Start 2023.06.27 @ 06:55:50 End 2023.06.27 @ 07:08:14 Sessions 1 Manual Loads 0 Difficulty Rogue Special Mode None Game No. 537 Rogue 510 Adventurer 4 Explorer 23 Win Type - Total 20 Types 14/0/2/2/1/0/0/1/0 Lore% 79 Gallery% 91 Achievement% 83 Wizard Run 0 Options --------- ASCII 0 Keyboard 1 Movement Numpad Keybinds 0 Fullscreen 1 Font 18/SmallcapsGlow Map View 76x50 Tactical HUD 1 Map Filters NONE Filters NONE Steam 1 RUN: 51f0edfd-99ef-4017-92e7-1876d696dec4